[Event "*** SCC Grand Prix: Titled Tuesday Blitz"]
[Site "Chess.com"]
[Date "2020.08.11"]
[Round "10"]
[White "zmarian"]
[Black "Chessbard1972"]
[Result "1/2-1/2"]
[WhiteElo "2197"]
[BlackElo "2307"]
[TimeControl "180+1"]
[EndTime "11:58:13 PDT"]
[Termination "Game drawn by repetition"]

1. g3 {[%clk 0:03:00.9]} 1... Nf6 {[%clk 0:02:57.4]} 2. Bg2 {[%clk 0:03:00.8]}
2... g6 {[%clk 0:02:49.4]} 3. Nf3 {[%clk 0:03:00.5]} 3... Bg7 {[%clk 0:02:49.2]}
4. O-O {[%clk 0:03:00.4]} 4... O-O {[%clk 0:02:49.2]} 5. d3 {[%clk 0:03:00.6]}
5... d5 {[%clk 0:02:48.7]} 6. Nbd2 {[%clk 0:03:00.3]} 6... c5 {[%clk 0:02:48.1]}
7. c4 {[%clk 0:02:59]} 7... Nc6 {[%clk 0:02:47.3]} 8. cxd5 {[%clk 0:02:58]} 8...
Nxd5 {[%clk 0:02:46.7]} 9. a3 {[%clk 0:02:58.5]} 9... b6 {[%clk 0:02:44.8]} 10.
Qc2 {[%clk 0:02:57.6]} 10... Bb7 {[%clk 0:02:44]} 11. Nc4 {[%clk 0:02:52.4]}
11... Rc8 {[%clk 0:02:42.5]} 12. Bd2 {[%clk 0:02:46.8]} 12... b5 {[%clk
0:02:36.9]} 13. Ne3 {[%clk 0:02:44.9]} 13... Nd4 {[%clk 0:02:35.1]} 14. Qd1
{[%clk 0:02:32.4]} 14... Nxe3 {[%clk 0:02:33.1]} 15. fxe3 {[%clk 0:02:14.6]}
15... Nxf3+ {[%clk 0:02:32.4]} 16. Bxf3 {[%clk 0:02:13.6]} 16... Bxf3 {[%clk
0:02:32.3]} 17. Rxf3 {[%clk 0:02:12.6]} 17... Bxb2 {[%clk 0:02:32.1]} 18. Rb1
{[%clk 0:02:11.9]} 18... Bxa3 {[%clk 0:02:31.5]} 19. Rxb5 {[%clk 0:02:11.5]}
19... Rb8 {[%clk 0:02:19.9]} 20. Ra5 {[%clk 0:02:03.6]} 20... Bb4 {[%clk
0:02:13.4]} 21. Rxa7 {[%clk 0:02:01.6]} 21... Qd6 {[%clk 0:01:57.9]} 22. Bxb4
{[%clk 0:01:43.3]} 22... Rxb4 {[%clk 0:01:55.9]} 23. Qa1 {[%clk 0:01:35.2]}
23... Qb6 {[%clk 0:01:47.9]} 24. Kg2 {[%clk 0:01:18.1]} 24... Rb2 {[%clk
0:01:40.1]} 25. Ra2 {[%clk 0:01:16.2]} 25... Rb1 {[%clk 0:01:36.9]} 26. Qc3
{[%clk 0:01:09.8]} 26... Qb4 {[%clk 0:01:26.7]} 27. Rc2 {[%clk 0:01:06.7]} 27...
Rc8 {[%clk 0:01:12]} 28. Qxb4 {[%clk 0:01:05.9]} 28... Rxb4 {[%clk 0:01:11.2]}
29. Rf4 {[%clk 0:01:03.9]} 29... Rxf4 {[%clk 0:01:06.1]} 30. exf4 {[%clk
0:01:03.5]} 30... f5 {[%clk 0:01:04.3]} 31. Rc4 {[%clk 0:01:00]} 31... Kf7
{[%clk 0:00:45.4]} 32. d4 {[%clk 0:00:59.9]} 32... Ke6 {[%clk 0:00:44.9]} 33.
dxc5 {[%clk 0:00:58.1]} 33... Kd5 {[%clk 0:00:44.4]} 34. Ra4 {[%clk 0:00:54.1]}
34... Rxc5 {[%clk 0:00:42.2]} 35. Ra7 {[%clk 0:00:53.4]} 35... Kd6 {[%clk
0:00:41.4]} 36. Ra8 {[%clk 0:00:51.9]} 36... e5 {[%clk 0:00:36.3]} 37. Rh8
{[%clk 0:00:47.8]} 37... Rc2 {[%clk 0:00:27.8]} 38. Kf2 {[%clk 0:00:42.7]} 38...
exf4 {[%clk 0:00:23.2]} 39. gxf4 {[%clk 0:00:42.4]} 39... Rc4 {[%clk 0:00:23]}
40. Kf3 {[%clk 0:00:37.1]} 40... Rc3+ {[%clk 0:00:22]} 41. e3 {[%clk 0:00:36.6]}
41... Rc7 {[%clk 0:00:21.8]} 42. h4 {[%clk 0:00:29.3]} 42... Kd5 {[%clk
0:00:20.1]} 43. Rf8 {[%clk 0:00:25.1]} 43... Ke6 {[%clk 0:00:19.7]} 44. Re8+
{[%clk 0:00:24.7]} 44... Kf6 {[%clk 0:00:18.8]} 45. Ra8 {[%clk 0:00:22.7]} 45...
h6 {[%clk 0:00:18.3]} 46. Ra6+ {[%clk 0:00:21.3]} 46... Kg7 {[%clk 0:00:18.3]}
47. Ra5 {[%clk 0:00:20.1]} 47... Re7 {[%clk 0:00:17.3]} 48. h5 {[%clk
0:00:19.2]} 48... Rd7 {[%clk 0:00:15.7]} 49. hxg6 {[%clk 0:00:18.1]} 49... Kxg6
{[%clk 0:00:15.4]} 50. Ra6+ {[%clk 0:00:17.3]} 50... Kg7 {[%clk 0:00:15.5]} 51.
Ra5 {[%clk 0:00:17.4]} 51... Kg6 {[%clk 0:00:15.3]} 52. Ra6+ {[%clk 0:00:17.2]}
52... Kg7 {[%clk 0:00:15.5]} 53. Ra5 {[%clk 0:00:17.2]} 53... Kg6 {[%clk
0:00:15.8]} 1/2-1/2

[Event "*** SCC Grand Prix: Titled Tuesday Blitz"]
[Site "Chess.com"]
[Date "2020.08.11"]
[Round "10"]
[White "Zarinur"]
[Black "canary2016"]
[Result "0-1"]
[WhiteElo "2127"]
[BlackElo "1887"]
[TimeControl "180+1"]
[EndTime "11:58:13 PDT"]
[Termination "canary2016 won by resignation"]

1. e4 {[%clk 0:03:00.9]} 1... e5 {[%clk 0:02:58.3]} 2. Nf3 {[%clk 0:03:00.4]}
2... Nf6 {[%clk 0:02:57.7]} 3. Nc3 {[%clk 0:02:59.9]} 3... Bb4 {[%clk 0:02:55]}
4. Nxe5 {[%clk 0:02:59.5]} 4... O-O {[%clk 0:02:51.4]} 5. Nd3 {[%clk 0:02:57.5]}
5... Re8 {[%clk 0:02:49.5]} 6. Be2 {[%clk 0:02:55.5]} 6... Nxe4 {[%clk
0:02:48.4]} 7. Nf4 {[%clk 0:02:46.9]} 7... Qf6 {[%clk 0:02:33.8]} 8. Ncd5 {[%clk
0:02:29.2]} 8... Qd4 {[%clk 0:02:27.3]} 9. O-O {[%clk 0:02:25.1]} 9... Bc5
{[%clk 0:02:11.8]} 10. c3 {[%clk 0:02:18.9]} 10... Qe5 {[%clk 0:02:11.1]} 11. d4
{[%clk 0:02:18]} 11... Bxd4 {[%clk 0:02:02.3]} 12. cxd4 {[%clk 0:02:17.1]} 12...
Qd6 {[%clk 0:02:02.1]} 13. Bd3 {[%clk 0:02:08.1]} 13... c6 {[%clk 0:01:57.9]}
14. Nc3 {[%clk 0:02:00.3]} 14... Nf6 {[%clk 0:01:48.5]} 15. h3 {[%clk
0:01:42.7]} 15... Qc7 {[%clk 0:01:35.9]} 16. Nh5 {[%clk 0:01:35.7]} 16... Nxh5
{[%clk 0:01:21.5]} 17. Qxh5 {[%clk 0:01:36.6]} 17... g6 {[%clk 0:01:21.9]} 18.
Qh6 {[%clk 0:01:34.7]} 18... d5 {[%clk 0:01:20.6]} 19. Bf4 {[%clk 0:01:27.9]}
19... Qe7 {[%clk 0:01:17.3]} 20. Be5 {[%clk 0:00:27.4]} 20... f5 {[%clk
0:01:11.8]} 21. Rae1 {[%clk 0:00:04.3]} 21... Qf7 {[%clk 0:01:10.2]} 22. Bf6
{[%clk 0:00:01.3]} 22... Rxe1 {[%clk 0:01:07]} 23. Rxe1 {[%clk 0:00:02.2]} 23...
Qf8 {[%clk 0:00:35]} 24. Bd8 {[%clk 0:00:03.1]} 24... Qxh6 {[%clk 0:00:33.4]}
25. Re8+ {[%clk 0:00:03.2]} 25... Kf7 {[%clk 0:00:33]} 26. Re7+ {[%clk
0:00:01.8]} 26... Kf8 {[%clk 0:00:32.1]} 27. Rc7 {[%clk 0:00:02.5]} 27... Na6
{[%clk 0:00:29.3]} 28. Re7 {[%clk 0:00:01.7]} 28... Qc1+ {[%clk 0:00:25]} 29.
Bf1 {[%clk 0:00:02.6]} 29... Qxb2 {[%clk 0:00:22.1]} 30. Re3 {[%clk 0:00:03]}
30... Bd7 {[%clk 0:00:19.4]} 31. Be7+ {[%clk 0:00:01.9]} 31... Kg8 {[%clk
0:00:17.8]} 32. Bd6 {[%clk 0:00:01.8]} 32... Re8 {[%clk 0:00:16.7]} 33. Rxe8+
{[%clk 0:00:01.3]} 33... Bxe8 {[%clk 0:00:16.6]} 34. Bxa6 {[%clk 0:00:02.2]}
34... bxa6 {[%clk 0:00:15.8]} 35. Na4 {[%clk 0:00:03.1]} 35... Qxa2 {[%clk
0:00:15.7]} 36. Nc5 {[%clk 0:00:01.9]} 36... Qb1+ {[%clk 0:00:15.2]} 37. Kh2
{[%clk 0:00:01.9]} 37... a5 {[%clk 0:00:15.4]} 38. g3 {[%clk 0:00:02.1]} 38...
a4 {[%clk 0:00:15.5]} 39. Ne6 {[%clk 0:00:02.3]} 39... a3 {[%clk 0:00:14.2]} 40.
Bxa3 {[%clk 0:00:02.1]} 40... Qa2 {[%clk 0:00:12.8]} 41. Bd6 {[%clk 0:00:02.2]}
41... Qxf2+ {[%clk 0:00:12.4]} 42. Kh1 {[%clk 0:00:03.1]} 42... Bf7 {[%clk
0:00:11.6]} 0-1

[Event "*** SCC Grand Prix: Titled Tuesday Blitz"]
[Site "Chess.com"]
[Date "2020.08.11"]
[Round "10"]
[White "IMTominho"]
[Black "volcanoexplorer"]
[Result "1-0"]
[WhiteElo "2777"]
[BlackElo "2639"]
[TimeControl "180+1"]
[EndTime "11:58:14 PDT"]
[Termination "IMTominho won by checkmate"]

1. d4 {[%clk 0:03:00.9]} 1... Nf6 {[%clk 0:02:57.2]} 2. c4 {[%clk 0:02:59.2]}
2... e6 {[%clk 0:02:57.4]} 3. Nf3 {[%clk 0:02:54.6]} 3... d5 {[%clk 0:02:54.1]}
4. Nc3 {[%clk 0:02:54.3]} 4... Be7 {[%clk 0:02:52.2]} 5. Bg5 {[%clk 0:02:53.4]}
5... O-O {[%clk 0:02:49.8]} 6. e3 {[%clk 0:02:53.4]} 6... Nbd7 {[%clk
0:02:49.5]} 7. Rc1 {[%clk 0:02:50.3]} 7... h6 {[%clk 0:02:49.7]} 8. Bh4 {[%clk
0:02:49.8]} 8... c5 {[%clk 0:02:49.6]} 9. cxd5 {[%clk 0:02:49.6]} 9... Nxd5
{[%clk 0:02:49.6]} 10. Bxe7 {[%clk 0:02:49.3]} 10... Nxe7 {[%clk 0:02:50.3]} 11.
Be2 {[%clk 0:02:47.8]} 11... b6 {[%clk 0:02:42.7]} 12. O-O {[%clk 0:02:43.4]}
12... Bb7 {[%clk 0:02:42.6]} 13. dxc5 {[%clk 0:02:41.6]} 13... Nxc5 {[%clk
0:02:40.8]} 14. b4 {[%clk 0:02:33.9]} 14... Ne4 {[%clk 0:02:28.3]} 15. Nxe4
{[%clk 0:02:30]} 15... Bxe4 {[%clk 0:02:29.2]} 16. Nd4 {[%clk 0:02:16]} 16...
Qd6 {[%clk 0:02:04.2]} 17. a3 {[%clk 0:02:07.6]} 17... Rfd8 {[%clk 0:02:01.1]}
18. Bf3 {[%clk 0:01:56.4]} 18... Bd5 {[%clk 0:01:40.3]} 19. Qe2 {[%clk
0:01:36.9]} 19... Rac8 {[%clk 0:01:34.6]} 20. h3 {[%clk 0:01:28.2]} 20... a5
{[%clk 0:01:31.2]} 21. Nb5 {[%clk 0:01:14]} 21... Qe5 {[%clk 0:01:23.1]} 22.
Bxd5 {[%clk 0:01:07.4]} 22... Nxd5 {[%clk 0:01:21.4]} 23. bxa5 {[%clk
0:01:06.8]} 23... bxa5 {[%clk 0:01:17.7]} 24. a4 {[%clk 0:01:06.4]} 24... Qe4
{[%clk 0:00:54.6]} 25. Nd6 {[%clk 0:00:40.3]} 25... Nf4 {[%clk 0:00:28.5]} 26.
Qg4 {[%clk 0:00:38.7]} 26... Rxc1 {[%clk 0:00:07.6]} 27. Nxe4 {[%clk 0:00:37.2]}
27... Rxf1+ {[%clk 0:00:05.1]} 28. Kxf1 {[%clk 0:00:38.1]} 28... Nd5 {[%clk
0:00:05.5]} 29. Nc5 {[%clk 0:00:35.1]} 29... Rc8 {[%clk 0:00:05.4]} 30. Qd4
{[%clk 0:00:33.2]} 30... Kf8 {[%clk 0:00:04.1]} 31. g4 {[%clk 0:00:30.5]} 31...
Ke7 {[%clk 0:00:03.7]} 32. Kg2 {[%clk 0:00:29.1]} 32... Rc6 {[%clk 0:00:02.9]}
33. Ne4 {[%clk 0:00:25.2]} 33... f6 {[%clk 0:00:02.7]} 34. Qa7+ {[%clk
0:00:24.4]} 34... Nc7 {[%clk 0:00:03.2]} 35. Qxa5 {[%clk 0:00:24.3]} 35... f5
{[%clk 0:00:03.9]} 36. gxf5 {[%clk 0:00:23.7]} 36... exf5 {[%clk 0:00:04.5]} 37.
Qxf5 {[%clk 0:00:22.8]} 37... Ne6 {[%clk 0:00:05.1]} 38. a5 {[%clk 0:00:21.7]}
38... g6 {[%clk 0:00:05.7]} 39. Qe5 {[%clk 0:00:21.3]} 39... Kf7 {[%clk
0:00:04.4]} 40. Qb5 {[%clk 0:00:18.5]} 40... Rc2 {[%clk 0:00:03.6]} 41. a6
{[%clk 0:00:17.7]} 41... Ng7 {[%clk 0:00:02.5]} 42. a7 {[%clk 0:00:16.6]} 42...
Nf5 {[%clk 0:00:03.4]} 43. Qb3+ {[%clk 0:00:16.4]} 43... Kg7 {[%clk 0:00:03.1]}
44. Qxc2 {[%clk 0:00:16.4]} 44... Nh4+ {[%clk 0:00:04]} 45. Kf1 {[%clk
0:00:15.7]} 45... g5 {[%clk 0:00:04.8]} 46. a8=Q {[%clk 0:00:15.4]} 46... Kg6
{[%clk 0:00:05.5]} 47. Ng3+ {[%clk 0:00:14.5]} 47... Nf5 {[%clk 0:00:06.4]} 48.
Qxf5+ {[%clk 0:00:13.7]} 48... Kg7 {[%clk 0:00:07.3]} 49. Qaf8# {[%clk
0:00:13.7]} 1-0

[Event "*** SCC Grand Prix: Titled Tuesday Blitz"]
[Site "Chess.com"]
[Date "2020.08.11"]
[Round "10"]
[White "GiantThresher"]
[Black "Heineccius"]
[Result "1-0"]
[WhiteElo "2728"]
[BlackElo "2597"]
[TimeControl "180+1"]
[EndTime "11:58:14 PDT"]
[Termination "GiantThresher won on time"]

1. e4 {[%clk 0:02:40.8]} 1... c5 {[%clk 0:02:58.9]} 2. Nc3 {[%clk 0:02:40.5]}
2... e6 {[%clk 0:02:58.1]} 3. Nf3 {[%clk 0:02:40.4]} 3... Nc6 {[%clk 0:02:57.3]}
4. d4 {[%clk 0:02:41]} 4... cxd4 {[%clk 0:02:55.8]} 5. Nxd4 {[%clk 0:02:41.9]}
5... Qc7 {[%clk 0:02:55.7]} 6. Be3 {[%clk 0:02:42.4]} 6... a6 {[%clk 0:02:55.1]}
7. a3 {[%clk 0:02:43.1]} 7... Nf6 {[%clk 0:02:54.1]} 8. f4 {[%clk 0:02:43.3]}
8... d6 {[%clk 0:02:39.7]} 9. Qf3 {[%clk 0:02:41.8]} 9... Bd7 {[%clk 0:02:37.3]}
10. O-O-O {[%clk 0:02:15.4]} 10... Nxd4 {[%clk 0:02:32.4]} 11. Bxd4 {[%clk
0:02:09.5]} 11... Bc6 {[%clk 0:02:32.8]} 12. Bxf6 {[%clk 0:02:02]} 12... gxf6
{[%clk 0:02:30.6]} 13. f5 {[%clk 0:02:02.9]} 13... Be7 {[%clk 0:01:37.5]} 14.
Bc4 {[%clk 0:01:48.2]} 14... Bd7 {[%clk 0:01:31.3]} 15. Bb3 {[%clk 0:01:46.4]}
15... O-O-O {[%clk 0:01:30.1]} 16. Qh5 {[%clk 0:01:45.5]} 16... Rdf8 {[%clk
0:01:26.6]} 17. Kb1 {[%clk 0:01:41.2]} 17... Kb8 {[%clk 0:01:19.7]} 18. Rhe1
{[%clk 0:01:39.5]} 18... Bc8 {[%clk 0:01:19]} 19. Ne2 {[%clk 0:01:39.5]} 19...
Rhg8 {[%clk 0:00:59]} 20. Nf4 {[%clk 0:01:37]} 20... e5 {[%clk 0:00:44.8]} 21.
Nd5 {[%clk 0:01:34.3]} 21... Qd7 {[%clk 0:00:45.4]} 22. g3 {[%clk 0:01:31.9]}
22... Bd8 {[%clk 0:00:45.7]} 23. Qh6 {[%clk 0:01:25.9]} 23... Qc6 {[%clk
0:00:37.4]} 24. Nxf6 {[%clk 0:01:24.2]} 24... Rh8 {[%clk 0:00:37.6]} 25. Nd5
{[%clk 0:01:18.8]} 25... Qc5 {[%clk 0:00:35.5]} 26. Re3 {[%clk 0:01:14.9]} 26...
f6 {[%clk 0:00:28.6]} 27. Rc3 {[%clk 0:01:14.2]} 27... Qf2 {[%clk 0:00:27.8]}
28. Rcd3 {[%clk 0:01:02.6]} 28... Bd7 {[%clk 0:00:24.7]} 29. Nc3 {[%clk
0:00:54.6]} 29... Bc7 {[%clk 0:00:21.2]} 30. Qg7 {[%clk 0:00:53.4]} 30... Bc6
{[%clk 0:00:17.9]} 31. R3d2 {[%clk 0:00:51.1]} 31... Qe3 {[%clk 0:00:16.5]} 32.
Bd5 {[%clk 0:00:51.3]} 32... Be8 {[%clk 0:00:14.3]} 33. Na2 {[%clk 0:00:43.3]}
33... h5 {[%clk 0:00:11.5]} 34. h4 {[%clk 0:00:39.9]} 34... Qh6 {[%clk
0:00:11.5]} 35. Qxh6 {[%clk 0:00:38]} 35... Rxh6 {[%clk 0:00:12.4]} 36. Rd3
{[%clk 0:00:32.6]} 36... Bf7 {[%clk 0:00:11.6]} 37. Nc3 {[%clk 0:00:29.9]} 37...
Be8 {[%clk 0:00:08.4]} 38. Ne2 {[%clk 0:00:28.6]} 38... Rh7 {[%clk 0:00:07]} 39.
Rb3 {[%clk 0:00:28.6]} 39... Rg7 {[%clk 0:00:07]} 40. Rxb7+ {[%clk 0:00:27.9]}
40... Kc8 {[%clk 0:00:06.5]} 41. Ra7 {[%clk 0:00:27.5]} 41... Bb5 {[%clk
0:00:04.9]} 42. c4 {[%clk 0:00:27.5]} 42... Ba4 {[%clk 0:00:04.4]} 43. Rd3
{[%clk 0:00:26.7]} 43... Re7 {[%clk 0:00:02.7]} 44. Nc3 {[%clk 0:00:25.5]} 44...
Bd7 {[%clk 0:00:01.7]} 45. Rxa6 {[%clk 0:00:25.6]} 45... Bb8 {[%clk 0:00:01.3]}
46. Nb5 {[%clk 0:00:25.7]} 46... Bxb5 {[%clk 0:00:01.2]} 47. cxb5 {[%clk
0:00:26]} 47... Rc7 {[%clk 0:00:01.7]} 48. Rc6 {[%clk 0:00:26.2]} 1-0

[Event "*** SCC Grand Prix: Titled Tuesday Blitz"]
[Site "Chess.com"]
[Date "2020.08.11"]
[Round "10"]
[White "Tashik"]
[Black "Fh2411"]
[Result "1-0"]
[WhiteElo "2398"]
[BlackElo "2539"]
[TimeControl "180+1"]
[EndTime "11:58:16 PDT"]
[Termination "Tashik won by resignation"]

1. c4 {[%clk 0:03:00.9]} 1... c6 {[%clk 0:02:45.9]} 2. d4 {[%clk 0:03:00]} 2...
d5 {[%clk 0:02:46.4]} 3. Nf3 {[%clk 0:03:00.6]} 3... Nf6 {[%clk 0:02:46.6]} 4.
Nc3 {[%clk 0:03:01.1]} 4... dxc4 {[%clk 0:02:46.6]} 5. a4 {[%clk 0:03:00.3]}
5... Bf5 {[%clk 0:02:46.6]} 6. Ne5 {[%clk 0:03:00.2]} 6... Na6 {[%clk
0:02:46.8]} 7. e3 {[%clk 0:02:56.3]} 7... Nb4 {[%clk 0:02:45.4]} 8. Bxc4 {[%clk
0:02:56.7]} 8... e6 {[%clk 0:02:45.8]} 9. O-O {[%clk 0:02:56.1]} 9... Be7 {[%clk
0:02:46.1]} 10. f3 {[%clk 0:02:49.8]} 10... a5 {[%clk 0:02:14.5]} 11. e4 {[%clk
0:02:47.8]} 11... Bg6 {[%clk 0:02:15.1]} 12. Be3 {[%clk 0:02:48.3]} 12... O-O
{[%clk 0:02:13.5]} 13. Qb3 {[%clk 0:02:44.9]} 13... Qc8 {[%clk 0:02:00.8]} 14.
Rac1 {[%clk 0:02:41.7]} 14... Nd7 {[%clk 0:01:47.2]} 15. Bxe6 {[%clk 0:02:30.3]}
15... fxe6 {[%clk 0:01:30.2]} 16. Qxe6+ {[%clk 0:02:31.2]} 16... Rf7 {[%clk
0:01:28.2]} 17. Nxf7 {[%clk 0:02:22.5]} 17... Bxf7 {[%clk 0:01:27.8]} 18. Qxe7
{[%clk 0:02:22.7]} 18... Nb6 {[%clk 0:01:27.2]} 19. Rcd1 {[%clk 0:02:12.9]}
19... Bb3 {[%clk 0:01:14.2]} 20. d5 {[%clk 0:02:03]} 20... Nc4 {[%clk
0:01:10.9]} 21. Bd4 {[%clk 0:02:02]} 21... Qf8 {[%clk 0:01:05.5]} 22. Qxf8+
{[%clk 0:01:54.3]} 22... Rxf8 {[%clk 0:01:06.4]} 23. Bc5 {[%clk 0:01:09.9]}
23... Rc8 {[%clk 0:00:58.9]} 24. Bxb4 {[%clk 0:01:06.2]} 24... axb4 {[%clk
0:00:59.8]} 25. Rc1 {[%clk 0:00:40.3]} 25... Nxb2 {[%clk 0:00:47]} 26. dxc6
{[%clk 0:00:19.4]} 26... bxc6 {[%clk 0:00:38.1]} 27. Nd5 {[%clk 0:00:17.5]}
27... Nd3 {[%clk 0:00:37.7]} 28. Rxc6 {[%clk 0:00:17.4]} 28... Rxc6 {[%clk
0:00:37]} 29. Ne7+ {[%clk 0:00:17.9]} 29... Kf7 {[%clk 0:00:35.8]} 30. Nxc6
{[%clk 0:00:18.8]} 30... Bxa4 {[%clk 0:00:35.8]} 31. Nd4 {[%clk 0:00:15.4]}
31... b3 {[%clk 0:00:31.8]} 32. Nxb3 {[%clk 0:00:12.3]} 32... Bxb3 {[%clk
0:00:32.7]} 33. Rb1 {[%clk 0:00:12.5]} 33... Nc5 {[%clk 0:00:31.2]} 34. Kf2
{[%clk 0:00:11.1]} 34... Be6 {[%clk 0:00:28.9]} 35. Ke3 {[%clk 0:00:11.1]} 35...
h5 {[%clk 0:00:26.1]} 36. Rb5 {[%clk 0:00:10.5]} 36... Nd7 {[%clk 0:00:23.3]}
37. Rxh5 {[%clk 0:00:11]} 37... Nf6 {[%clk 0:00:23.8]} 38. Ra5 {[%clk
0:00:11.5]} 38... Kg6 {[%clk 0:00:23.3]} 39. g4 {[%clk 0:00:10.7]} 39... Kf7
{[%clk 0:00:20.2]} 40. h3 {[%clk 0:00:11.1]} 40... Nh7 {[%clk 0:00:18.6]} 41. f4
{[%clk 0:00:11.4]} 41... Bd7 {[%clk 0:00:15.8]} 42. Ra7 {[%clk 0:00:10.5]} 42...
Ke8 {[%clk 0:00:15.3]} 43. f5 {[%clk 0:00:10.1]} 43... Nf6 {[%clk 0:00:14.8]}
44. e5 {[%clk 0:00:10.3]} 44... Nd5+ {[%clk 0:00:15]} 45. Kd4 {[%clk 0:00:09.6]}
45... Nf4 {[%clk 0:00:15.2]} 46. e6 {[%clk 0:00:09.7]} 46... Bxe6 {[%clk
0:00:13.7]} 47. fxe6 {[%clk 0:00:09]} 47... Nxe6+ {[%clk 0:00:14.6]} 48. Ke5
{[%clk 0:00:09.4]} 1-0

[Event "*** SCC Grand Prix: Titled Tuesday Blitz"]
[Site "Chess.com"]
[Date "2020.08.11"]
[Round "10"]
[White "ailime26"]
[Black "beto-betun"]
[Result "0-1"]
[WhiteElo "1901"]
[BlackElo "2154"]
[TimeControl "180+1"]
[EndTime "11:58:16 PDT"]
[Termination "beto-betun won on time"]

1. e4 {[%clk 0:03:00.9]} 1... c5 {[%clk 0:02:59.2]} 2. Nf3 {[%clk 0:02:59.9]}
2... d6 {[%clk 0:02:55.7]} 3. d4 {[%clk 0:03:00]} 3... cxd4 {[%clk 0:02:56]} 4.
Nxd4 {[%clk 0:03:00.8]} 4... Nf6 {[%clk 0:02:55.4]} 5. Nc3 {[%clk 0:03:01]} 5...
a6 {[%clk 0:02:55.4]} 6. Be3 {[%clk 0:03:01.1]} 6... e5 {[%clk 0:02:53.5]} 7.
Nb3 {[%clk 0:03:00.3]} 7... Be7 {[%clk 0:02:51]} 8. f3 {[%clk 0:02:59.9]} 8...
h5 {[%clk 0:02:46.2]} 9. Qd2 {[%clk 0:02:59.2]} 9... Be6 {[%clk 0:02:29.8]} 10.
h3 {[%clk 0:02:52.2]} 10... Nbd7 {[%clk 0:02:18.8]} 11. O-O-O {[%clk 0:02:48.4]}
11... b5 {[%clk 0:02:14.2]} 12. Nd5 {[%clk 0:02:38.2]} 12... Nxd5 {[%clk
0:02:05.3]} 13. exd5 {[%clk 0:02:37.3]} 13... Bf5 {[%clk 0:02:05.8]} 14. Be2
{[%clk 0:02:29.6]} 14... Rc8 {[%clk 0:02:02.3]} 15. Bd3 {[%clk 0:02:28.5]} 15...
Bxd3 {[%clk 0:02:01.8]} 16. Qxd3 {[%clk 0:02:27.2]} 16... Bg5 {[%clk 0:01:56.8]}
17. g4 {[%clk 0:02:24.7]} 17... Bxe3+ {[%clk 0:01:52.6]} 18. Qxe3 {[%clk
0:02:22.7]} 18... Qc7 {[%clk 0:01:53.2]} 19. Qe2 {[%clk 0:02:18.9]} 19... Nb6
{[%clk 0:01:38.2]} 20. f4 {[%clk 0:02:15.5]} 20... Qc4 {[%clk 0:01:35.1]} 21.
Rhe1 {[%clk 0:02:04.6]} 21... hxg4 {[%clk 0:01:25.9]} 22. fxe5 {[%clk 0:02:02]}
22... Qxe2 {[%clk 0:01:23.4]} 23. Rxe2 {[%clk 0:01:57.7]} 23... gxh3 {[%clk
0:01:19.3]} 24. exd6+ {[%clk 0:01:35.8]} 24... Kd7 {[%clk 0:01:18.2]} 25. Re7+
{[%clk 0:01:17.4]} 25... Kxd6 {[%clk 0:01:18]} 26. Rxf7 {[%clk 0:01:16]} 26...
h2 {[%clk 0:01:12.2]} 27. Rff1 {[%clk 0:01:14.3]} 27... Nc4 {[%clk 0:01:08.9]}
28. Rfe1 {[%clk 0:01:03.2]} 28... Ne3 {[%clk 0:00:43.6]} 29. Rxe3 {[%clk
0:00:46]} 29... h1=Q {[%clk 0:00:43.2]} 30. Re6+ {[%clk 0:00:44.5]} 30... Kd7
{[%clk 0:00:42.4]} 31. Rxh1 {[%clk 0:00:43.3]} 31... Rxh1+ {[%clk 0:00:43.3]}
32. Kd2 {[%clk 0:00:40.9]} 32... Rh2+ {[%clk 0:00:37.5]} 33. Kd3 {[%clk
0:00:37.9]} 33... Rcxc2 {[%clk 0:00:26.1]} 34. Rxa6 {[%clk 0:00:34.4]} 34...
Rxb2 {[%clk 0:00:26.2]} 35. Nc5+ {[%clk 0:00:30.7]} 35... Ke8 {[%clk 0:00:15.1]}
36. Ra8+ {[%clk 0:00:24.2]} 36... Ke7 {[%clk 0:00:12]} 37. Ne4 {[%clk
0:00:09.7]} 37... Rh3+ {[%clk 0:00:09.5]} 38. Kd4 {[%clk 0:00:07.5]} 38... Rb4+
{[%clk 0:00:08.8]} 39. Ke5 {[%clk 0:00:06.4]} 39... Rh5+ {[%clk 0:00:06]} 40.
Kf4 {[%clk 0:00:03.2]} 40... Rh4+ {[%clk 0:00:06.5]} 41. Kf5 {[%clk 0:00:01.4]}
41... Rhxe4 {[%clk 0:00:07.1]} 0-1